Entity,Date ,Expense Type,Expense Area,Supplier,Transaction Number,  Amount (�)  
South West Yorkshire NHS Foundation Trust,24-Jul-23,Purchase of Healthcare,AS Collaborative,Cheswold Park Hospital,5086,"800,000"
South West Yorkshire NHS Foundation Trust,15-Aug-23,Purchase of Healthcare,AS Collaborative,Leeds & York Partnership NHS Foundation Trust,999988,"666,894"
South West Yorkshire NHS Foundation Trust,01-Sep-23,Purchase of Healthcare,AS Collaborative,Cygnet Health Care Ltd,CYGWYS37,"544,330"
South West Yorkshire NHS Foundation Trust,16-Aug-23,Purchase of Healthcare,AS Collaborative,Bradford District Care NHS Foundation Trust,203543,"519,424"
South West Yorkshire NHS Foundation Trust,01-Aug-23,Purchase of Healthcare,AS Collaborative,Partnerships In Care Ltd,D510008187,"337,679"
South West Yorkshire NHS Foundation Trust,01-Aug-23,Purchase of Healthcare,AS Collaborative,Waterloo Manor Ltd,HO NHS LS 275,"245,869"
South West Yorkshire NHS Foundation Trust,02-Aug-23,Purchase of Healthcare,AS Collaborative,Rotherham Doncaster & South Humber NHS Foundation Trust,4400000237,"230,447"
South West Yorkshire NHS Foundation Trust,28-Jul-23,Purchase of Healthcare,AS Collaborative,Sheffield Health & Social Care NHS Foundation Trust,0000000171,"186,496"
South West Yorkshire NHS Foundation Trust,01-Sep-23,Purchase of Healthcare,AS Collaborative,Cygnet Health Care Ltd,CYGSYS14,"185,000"
South West Yorkshire NHS Foundation Trust,08-Aug-23,Purchase of Healthcare,Kirklees,Northorpe Hall Child & Family Trust,INV0546,"172,704"
South West Yorkshire NHS Foundation Trust,21-Aug-23,Purchase of Healthcare,AS Collaborative,Cheswold Park Hospital,5127,"159,820"
South West Yorkshire NHS Foundation Trust,01-Aug-23,Purchase of Healthcare,AS Collaborative,Partnerships In Care Ltd,D510008183,"120,179"
South West Yorkshire NHS Foundation Trust,18-Jul-23,Purchase of Healthcare,Trustwide,Elysium Healthcare Ltd,FDN00865,"105,133"
South West Yorkshire NHS Foundation Trust,10-Aug-23,Purchase of Healthcare,AS Collaborative,Cygnet Health Care Ltd,SYSEC015INV,"102,998"
South West Yorkshire NHS Foundation Trust,03-Aug-23,IT Services,Trustwide,Daisy Corporate Services,3I513277,"90,250"
South West Yorkshire NHS Foundation Trust,15-Aug-23,Purchase of Healthcare,Kirklees,Kirklees Council,8608201371,"85,000"
South West Yorkshire NHS Foundation Trust,09-Aug-23,Purchase of Healthcare,Barnsley,Barnsley Hospital NHS Foundation Trust,6027029,"73,695"
South West Yorkshire NHS Foundation Trust,30-Aug-23,Drugs,Trustwide,Bradford Teaching Hospitals NHS Foundation Trust,324628,"71,956"
South West Yorkshire NHS Foundation Trust,11-Aug-23,Drugs,Trustwide,Lp Hcs Ltd,HCSLP119,"67,344"
South West Yorkshire NHS Foundation Trust,17-Aug-23,Purchase of Healthcare,AS Collaborative,Leeds & York Partnership NHS Foundation Trust,1000000,"64,961"
South West Yorkshire NHS Foundation Trust,31-Jul-23,Purchase of Healthcare,AS Collaborative,Cheswold Park Hospital,5125,"60,049"
South West Yorkshire NHS Foundation Trust,15-Aug-23,Purchase of Healthcare,Kirklees,Kirklees Council,8608201339,"56,500"
South West Yorkshire NHS Foundation Trust,21-Aug-23,Purchase of Healthcare,AS Collaborative,Elysium Healthcare Ltd,128 11209,"56,000"
South West Yorkshire NHS Foundation Trust,04-Jul-23,Purchase of Healthcare,AS Collaborative,Spectrum Community Health Cic,SINV6376,"48,868"
South West Yorkshire NHS Foundation Trust,02-Aug-23,Purchase of Healthcare,AS Collaborative,Mersey Care NHS Foundation Trust,72485641,"47,313"
South West Yorkshire NHS Foundation Trust,02-Aug-23,Drugs,Trustwide,Edf Energy Customers Ltd,000016199274,"42,620"
South West Yorkshire NHS Foundation Trust,25-Jul-23,Purchase of Healthcare,AS Collaborative,Sheffield Childrens NHS Foundation Trust,2400000720,"42,605"
South West Yorkshire NHS Foundation Trust,24-Aug-23,Computer Hardware,Trustwide,Family Lives,2478,"39,709"
South West Yorkshire NHS Foundation Trust,02-Aug-23,Purchase of Healthcare,AS Collaborative,Partnerships In Care Ltd,D190001054EPC,"35,280"
South West Yorkshire NHS Foundation Trust,12-Aug-23,Computer Hardware,Trustwide,Vodafone Ltd,104402906,"33,800"
South West Yorkshire NHS Foundation Trust,12-Jul-23,Computer Hardware,Trustwide,Vodafone Ltd,104212358,"33,055"
South West Yorkshire NHS Foundation Trust,31-May-23,Computer Hardware,Trustwide,Cinnamon Digital Applications Ltd,INV127,"32,703"
South West Yorkshire NHS Foundation Trust,04-Aug-23,Computer Hardware,Trustwide,Humber Teaching NHS Foundation Trust,59893328,"30,255"
South West Yorkshire NHS Foundation Trust,31-Jul-23,Purchase of Healthcare,AS Collaborative,Cygnet Health Care Ltd,BLA0300665,"29,543"
South West Yorkshire NHS Foundation Trust,22-Aug-23,Utilities,Trustwide,Leeds & York Partnership NHS Foundation Trust,1000046,"28,944"
South West Yorkshire NHS Foundation Trust,31-Jul-23,Purchase of Healthcare,AS Collaborative,Cygnet Health Care Ltd,WKE0300980,"28,693"
South West Yorkshire NHS Foundation Trust,01-Aug-23,Drugs,Trustwide,Ieso Digital Health Ltd,UK001345,"28,672"
South West Yorkshire NHS Foundation Trust,01-Aug-23,Purchase of Healthcare,Trustwide,Cheadle Royal Hospital,2900022762,"26,955"
South West Yorkshire NHS Foundation Trust,01-Apr-23,Purchase of Healthcare,OOA,NHS Providers,0000008164,"26,908"
South West Yorkshire NHS Foundation Trust,02-Aug-23,Mobile Phones,Trustwide,Edf Energy Customers Ltd,000016189594,"25,916"
South West Yorkshire NHS Foundation Trust,04-Jul-23,Advocacy Service,Forensic,St Andrews Healthcare,90124151,"25,281"
South West Yorkshire NHS Foundation Trust,02-Aug-23,MFD,Trustwide,St Andrews Healthcare,90125253,"25,281"
South West Yorkshire NHS Foundation Trust,06-Jul-23,Purchase of Healthcare,Forensic,Voluntary Action Calderdale,INV00741,"25,000"
